bitfinex-derivatives/quotes_BNBF0:USTF0_20250331
["timestamp","ask_amount","ask_price","bid_price","bid_amount"]
[1743390745509,1.37665347,604.07,602.66,0.31935426]
[1743390745806,1.38817141,604.06,602.66,0.31935426]
[1743390746010,0.30449762,604.05,602.66,0.31935426]
[1743390746407,1.08367379,604.04,602.66,0.31935426]
[1743390746605,1.38817141,604.03,602.66,0.31935426]
[1743390746906,1.38817141,604.02,602.66,0.31935426]
[1743390747110,0.30449762,604.01,602.66,0.31935426]
[1743390747311,1.37208632,604.02,602.66,0.31935426]
[1743390747609,0.3044993,604.01,602.66,0.31935426]
[1743390748109,1.08367379,604.0,602.66,0.31935426]
[1743390748708,1.08367379,603.99,602.66,0.31935426]
[1743390748905,1.91867379,603.99,602.66,0.31935426]
[1743390749115,0.835,603.99,602.66,0.31935426]
[1743390749308,0.30450094,603.98,602.66,0.31935426]
[1743390750207,0.28842926,603.97,602.66,0.31935426]
[1743390750412,0.30450094,603.96,602.66,0.31935426]
[1743390750710,0.28842926,603.97,602.66,0.31935426]
[1743390750910,0.30450299,603.96,602.66,0.31935426]
[1743390752510,0.28842926,603.97,602.66,0.31935426]
[1743390752707,0.30450307,603.96,602.66,0.31935426]
[1743390753206,0.30450307,603.95,602.66,0.31935426]
[1743390753412,0.2884197,603.95,602.66,0.31935426]
[1743390753607,0.30450307,603.94,602.66,0.31935426]
[1743390756113,0.30450307,603.98,602.66,0.31935426]
[1743390756315,0.28842209,603.93,602.66,0.31935426]
[1743390756612,0.30450307,603.92,602.66,0.31935426]
[1743390757807,2.46159203,603.91,602.66,0.31935426]
[1743390758012,0.30450307,603.9,602.66,0.31935426]
[1743390758413,2.46159203,603.89,602.66,0.31935426]
[1743390758614,2.7660951,603.88,602.66,0.31935426]
[1743390758809,1.68242131,603.87,602.66,0.31935426]
[1743390759018,1.68242131,603.86,602.66,0.31935426]
[1743390759214,1.08367379,603.88,602.66,0.31935426]
[1743390759215,1.38817686,603.85,602.66,0.31935426]
[1743390759416,0.30450307,603.84,602.66,0.31935426]
[1743390759915,1.08367379,603.83,602.66,0.31935426]
[1743390760215,0.30450307,603.82,602.66,0.31935426]
[1743390760415,1.08367379,603.81,602.66,0.31935426]
[1743390760615,0.30450307,603.8,602.66,0.31935426]
[1743390761010,0.30450307,603.81,602.66,0.31935426]
[1743390761211,0.30450307,603.8,602.66,0.31935426]
[1743390761418,3.57069983,603.81,602.66,0.31935426]
[1743390761713,0.30459958,603.8,602.66,0.31935426]
[1743390762011,1.10913884,603.8,602.66,0.31935426]
[1743390762209,1.38827337,603.79,602.66,0.31935426]
[1743390762412,1.68251782,603.78,602.66,0.31935426]
[1743390762611,1.68251782,603.77,602.66,0.31935426]
[1743390762816,0.30459958,603.76,602.66,0.31935426]
[1743390763315,0.30459958,603.75,602.66,0.31935426]
[1743390763518,0.30459958,603.81,602.66,0.31935426]
[1743390763719,0.30459958,603.8,602.66,0.31935426]
[1743390764329,1.38827337,603.81,602.66,0.31935426]
[1743390764526,0.30459958,603.8,602.66,0.31935426]
[1743390764828,1.41491478,603.79,602.66,0.31935426]
[1743390765027,0.30459958,603.78,602.66,0.31935426]
[1743390765224,0.33125196,603.77,602.66,0.31935426]
[1743390765422,0.30459958,603.76,602.66,0.31935426]
[1743390766025,0.28860986,603.75,602.66,0.31935426]
[1743390766229,0.30459958,603.74,602.66,0.31935426]
[1743390767027,0.33127391,603.73,602.66,0.31935426]
[1743390767227,0.30459958,603.72,602.66,0.31935426]
[1743390767824,0.33128488,603.71,602.66,0.31935426]
[1743390768029,0.30459958,603.7,602.66,0.31935426]
[1743390768929,0.30469128,603.69,602.66,0.31935426]
[1743390769126,0.30469128,603.68,602.66,0.31935426]
[1743390772229,0.28865654,603.67,602.66,0.31935426]
[1743390772731,0.30469155,603.66,602.66,0.31935426]
[1743390774531,0.30469155,603.65,602.66,0.31935426]
[1743390774731,0.30469155,603.64,602.66,0.31935426]
[1743390774933,0.30469155,603.63,602.66,0.31935426]
[1743390775133,0.33129586,603.69,602.66,0.31935426]
[1743390775134,0.30469155,603.62,602.66,0.31935426]
[1743390775332,0.2886757,603.63,602.66,0.31935426]
[1743390775526,0.30469155,603.62,602.66,0.31935426]
[1743390776130,0.3046909,603.61,602.66,0.31935426]
[1743390776332,0.3046909,603.62,602.66,0.31935426]
[1743390776527,0.3046909,603.61,602.66,0.31935426]
[1743390776732,0.3046909,603.6,602.66,0.31935426]
[1743390776927,0.2886757,603.63,602.66,0.31935426]
[1743390776928,0.3046909,603.59,602.66,0.31935426]
[1743390777233,0.33129586,603.69,602.66,0.31935426]
[1743390777234,0.3046909,603.58,602.66,0.31935426]
[1743390777433,0.3046909,603.57,602.66,0.31935426]
[1743390777633,0.3046909,603.68,602.66,0.31935426]
[1743390777827,0.33129586,603.69,602.66,0.31935426]
[1743390778030,0.30469295,603.68,602.66,0.31935426]
[1743390778328,0.28870085,603.67,602.66,0.31935426]
[1743390778531,0.30469295,603.66,602.66,0.31935426]
[1743390780126,0.30469295,603.68,602.66,0.31935426]
[1743390780327,0.30469295,603.67,602.66,0.31935426]
[1743390780530,0.30469295,603.68,602.66,0.31935426]
[1743390780731,0.30469295,603.66,602.66,0.31935426]
[1743390780932,0.30469295,603.65,602.66,0.31935426]
[1743390781129,0.30469662,603.64,602.66,0.31935426]
[1743390781328,0.30469662,603.63,602.66,0.31935426]
[1743390781735,0.30469662,603.62,602.66,0.31935426]
[1743390781935,0.30469662,603.64,602.66,0.31935426]
[1743390783332,0.30469662,603.63,602.66,0.31935426]
[1743390783636,0.30469662,603.62,602.66,0.31935426]
[1743390783835,0.30469662,603.68,602.66,0.31935426]
[1743390784035,0.2887248,603.62,602.66,0.31935426]
[1743390784237,0.30469662,603.61,602.66,0.31935426]
[1743390786139,0.33129586,603.69,602.66,0.31935426]
[1743390786437,0.30471539,603.68,602.66,0.31935426]
[1743390787133,0.28872839,603.67,602.66,0.31935426]
[1743390787332,0.63602771,603.66,602.66,0.31935426]
[1743390787537,0.6360332,603.65,602.66,0.31935426]
[1743390787732,0.63603869,603.64,602.66,0.31935426]
[1743390788131,0.30471539,603.63,602.66,0.31935426]
[1743390789934,0.3047407,603.62,602.66,0.31935426]
[1743390790138,0.3047407,603.61,602.66,0.31935426]
[1743390790333,0.33133977,603.61,602.51,0.28872719]
[1743390790534,0.3047407,603.6,602.51,0.28872719]
[1743390791938,0.3047407,603.6,601.4,2.49252141]
[1743390792141,0.3047407,603.6,601.51,0.33249655]
[1743390792441,0.28873318,603.59,602.47,0.28873318]
[1743390792637,0.28873318,603.59,601.51,0.33249655]
[1743390793342,0.33135624,603.58,601.51,0.33249655]
[1743390794042,0.33135624,603.58,601.52,0.28874396]
[1743390794342,0.33135624,603.58,601.62,0.33243575]
[1743390795243,0.28873438,603.57,601.62,0.33243575]
[1743390795443,0.33136722,603.56,601.62,0.33243575]
[1743390798249,0.28873199,603.55,601.62,0.33243575]
[1743390798643,0.6201047,603.55,601.62,0.33243575]
[1743390801044,0.33137271,603.55,601.62,0.33243575]
[1743390801348,0.2887224,603.54,601.62,0.33243575]
[1743390802751,0.30477747,603.53,601.62,0.33243575]
[1743390804145,0.30477747,603.54,601.62,0.33243575]
[1743390804350,0.30477747,603.53,601.62,0.33243575]
[1743390804547,0.28875235,603.52,601.62,0.33243575]
[1743390804952,0.30477747,603.51,601.62,0.33243575]
[1743390805953,0.30477747,603.51,601.63,2.49252141]
[1743390807353,0.28872001,603.5,601.63,2.49252141]
[1743390807556,0.30477747,603.49,601.63,2.49252141]
[1743390807750,0.30477747,603.49,601.67,2.49252141]
[1743390810247,0.30477747,603.54,601.67,2.49252141]
[1743390810448,0.28871761,603.48,601.67,2.49252141]
[1743390810747,0.30476825,603.47,601.67,2.49252141]
[1743390811049,1.08276825,603.47,601.67,2.49252141]
[1743390811253,0.30476825,603.46,601.79,2.49252141]
[1743390811452,0.30476825,603.46,601.81,0.3323308]
[1743390812249,0.304771,603.45,601.81,0.3323308]
[1743390812449,0.304771,603.46,601.81,0.3323308]
[1743390812649,0.304771,603.45,601.81,0.3323308]
[1743390812851,0.30477306,603.44,601.81,0.3323308]
[1743390813050,0.30477306,603.43,601.81,0.3323308]
[1743390813256,0.30477306,603.42,601.81,0.3323308]
[1743390813455,0.30477306,603.41,601.81,0.3323308]
[1743390813649,0.30477306,603.4,601.81,0.3323308]
[1743390813853,0.30477306,603.39,601.81,0.3323308]
[1743390814157,0.30477306,603.38,601.81,0.3323308]
[1743390814352,0.30477306,603.37,601.81,0.3323308]
[1743390814556,0.30478219,603.36,601.81,0.3323308]
[1743390814754,0.30478219,603.35,601.81,0.3323308]
[1743390814954,0.30478219,603.42,601.81,0.3323308]
[1743390815150,0.28872121,603.43,601.81,0.3323308]
[1743390815351,0.30478201,603.42,601.81,0.3323308]
[1743390816154,0.778,603.47,601.81,0.3323308]
[1743390816155,0.30478201,603.41,601.81,0.3323308]
[1743390816355,0.28873199,603.41,601.81,0.3323308]
[1743390816552,0.30477935,603.4,601.81,0.3323308]
[1743390817252,0.30477935,603.4,601.81,2.82485221]
[1743390818759,0.30477935,603.4,601.81,0.3323308]
[1743390819160,0.30477935,603.39,601.81,0.3323308]
[1743390819459,0.30477935,603.38,601.81,0.3323308]
[1743390820159,0.30477935,603.38,601.89,2.49252141]
[1743390820365,0.30477935,603.38,601.91,0.33227558]
[1743390822261,0.30477935,603.37,601.91,0.33227558]
[1743390822462,0.30477935,603.46,601.91,2.82479699]
[1743390822761,0.30477935,603.45,601.91,2.82479699]
[1743390823062,0.30477935,603.44,601.91,2.82479699]
[1743390823256,0.30477935,603.46,601.91,2.82479699]
[1743390823457,0.28869246,603.44,601.91,2.82479699]
[1743390823860,0.30477499,603.43,601.91,2.82479699]
[1743390824061,0.30477499,603.43,602.06,2.49252141]
[1743390824257,0.30477499,603.43,602.08,0.33218176]
[1743390825255,0.30477499,603.42,602.08,0.33218176]
[1743390825455,0.30477748,603.41,602.08,0.33218176]
[1743390825656,0.30477748,603.4,602.08,0.33218176]
[1743390825856,0.30477748,603.39,602.08,0.33218176]
[1743390826055,0.30477748,603.46,602.08,0.33218176]
[1743390826256,1.86167379,603.47,602.08,0.33218176]
[1743390826455,0.28869007,603.38,602.08,0.33218176]
[1743390826860,1.08367379,603.46,602.08,0.33218176]
[1743390827059,0.28869366,603.37,602.08,0.33218176]
[1743390827457,1.08367379,603.45,602.08,0.33218176]
[1743390827657,1.08367379,603.44,602.08,0.33218176]
[1743390827862,3.17557293,603.44,602.08,0.33218176]
[1743390828059,2.45975508,603.43,602.08,0.33218176]
[1743390828263,4.84036704,603.43,602.08,0.33218176]
[1743390828464,3.46798043,603.42,602.08,0.33218176]
[1743390828657,1.08367379,603.41,602.08,0.33218176]
[1743390828861,2.45975508,603.41,602.08,0.33218176]
[1743390829157,1.08367379,603.42,602.08,0.33218176]
[1743390829556,1.08367379,603.41,602.08,0.33218176]
[1743390829760,4.55165422,603.41,602.08,0.33218176]
[1743390829962,4.55165422,603.4,602.08,0.33218176]
[1743390830162,3.46798043,603.39,602.08,0.33218176]
[1743390830358,4.55165422,603.39,602.08,0.33218176]
[1743390830563,3.46798043,603.38,602.08,0.33218176]
[1743390830965,1.08367379,603.37,602.08,0.33218176]
[1743390831266,4.84036704,603.37,602.08,0.33218176]
[1743390831467,3.46798043,603.36,602.08,0.33218176]
[1743390831660,1.08367379,603.35,602.08,0.33218176]
[1743390832269,0.28871282,603.37,602.08,0.33218176]
[1743390832574,2.45975508,603.36,602.08,0.33218176]
[1743390832766,2.48553228,603.35,602.08,0.33218176]
[1743390832963,1.68095569,603.34,602.08,0.33218176]
[1743390833170,1.68095569,603.33,602.08,0.33218176]
[1743390833370,1.68095569,603.32,602.08,0.33218176]
[1743390833570,1.68095569,603.31,602.08,0.33218176]
[1743390833768,2.76462948,603.3,602.08,0.33218176]
[1743390833969,1.68095569,603.29,602.08,0.33218176]
[1743390834165,1.38854819,603.28,602.08,0.33218176]
[1743390834372,1.08367379,603.28,602.08,0.33218176]
[1743390834571,0.30490105,603.27,602.08,0.33218176]
[1743390834968,2.45975508,603.26,602.08,0.33218176]
[1743390835272,3.09619363,603.25,602.08,0.33218176]
[1743390835472,2.81710193,603.24,602.08,0.33218176]
[1743390835768,2.01253083,603.23,602.08,0.33218176]
[1743390835971,2.01311561,603.22,602.08,0.33218176]
[1743390836167,2.01312111,603.21,602.08,0.33218176]
[1743390836372,1.68156162,603.2,602.08,0.33218176]
[1743390836568,0.63647153,603.19,602.08,0.33218176]
[1743390836770,0.63647703,603.18,602.08,0.33218176]
[1743390836974,0.30490105,603.17,602.08,0.33218176]
[1743390840477,0.28891536,603.16,602.08,0.33218176]
[1743390840679,0.30495778,603.15,602.08,0.33218176]
[1743390841985,0.30497262,603.14,602.08,0.33218176]
[1743390842181,0.30497262,603.15,602.08,0.33218176]
[1743390842381,0.30497262,603.14,602.08,0.33218176]
[1743390842783,0.33159247,603.15,602.08,0.33218176]
[1743390843086,0.30497132,603.14,602.08,0.33218176]
[1743390843287,0.59379077,603.14,602.08,0.33218176]
[1743390843487,0.30497132,603.13,602.08,0.33218176]
[1743390843988,3.26056822,603.12,602.08,0.33218176]
[1743390844188,2.48186575,603.11,602.08,0.33218176]
[1743390844487,1.67965049,603.1,602.08,0.33218176]
[1743390844684,1.67965049,603.09,601.79,0.28900294]
[1743390844889,0.63660228,603.08,601.79,0.28900294]
[1743390845084,0.63660778,603.07,601.79,0.28900294]
[1743390845283,1.67599392,603.06,601.79,0.28900294]
[1743390845487,0.33163646,603.07,601.79,0.28900294]
[1743390845488,0.30497132,603.05,601.79,0.28900294]
[1743390845683,0.30497132,603.04,601.79,0.28900294]
[1743390845989,1.08367379,603.03,600.38,2.49252141]
[1743390846191,0.30497132,603.02,600.38,2.49252141]
[1743390846392,1.08367379,603.02,601.79,0.28908697]
[1743390846588,0.30511369,603.01,600.51,0.33305024]
[1743390847090,0.30511369,603.02,600.51,0.33305024]
[1743390847290,0.30511369,603.01,600.51,0.33305024]
[1743390847593,0.30511369,603.01,600.52,0.28909657]
[1743390847794,2.38465399,603.01,600.52,0.28909657]
[1743390847990,0.30511369,603.0,600.52,0.28909657]
[1743390848190,0.33168045,602.99,600.64,0.33297815]
[1743390848390,0.30507127,602.98,600.64,0.33297815]
[1743390850595,0.30507127,602.97,600.64,0.33297815]
[1743390850794,0.30507127,602.98,600.64,0.33297815]
[1743390850991,0.30507127,602.97,600.64,0.33297815]
[1743390851190,0.30507127,602.96,600.85,2.49252141]
[1743390851395,0.30507127,602.95,600.95,0.33280638]
[1743390851598,0.30507127,602.98,600.95,0.33280638]
[1743390851790,0.30507127,602.97,600.95,0.33280638]
[1743390851990,0.30507127,602.98,600.95,0.33280638]
[1743390852194,0.30507127,602.97,600.95,0.33280638]
[1743390852397,0.30507127,602.98,600.95,0.33280638]
[1743390853697,0.33168045,602.99,600.95,0.33280638]
[1743390853891,0.30500889,602.98,600.95,0.33280638]
[1743390855399,0.33168045,602.99,600.95,0.33280638]
[1743390855597,0.30504166,602.98,600.95,0.33280638]
[1743390858899,0.30503687,602.97,600.95,0.33280638]
[1743390859101,0.30503687,602.96,600.95,0.33280638]
[1743390859302,0.30503687,602.95,600.95,0.33280638]
[1743390859500,0.30503687,602.94,600.95,0.33280638]
[1743390859697,0.30503687,602.96,600.95,0.33280638]
[1743390859897,0.30503687,602.95,600.95,0.33280638]
[1743390860097,0.30503687,602.96,600.95,0.33280638]
[1743390860899,0.28901374,602.97,600.95,0.33280638]
[1743390861099,0.30501458,602.96,600.95,0.33280638]
[1743390861301,0.28901494,602.95,600.95,0.33280638]
[1743390861696,0.30501458,602.94,600.95,0.33280638]
[1743390862805,0.30501321,602.93,600.95,0.33280638]
[1743390863007,0.30501321,602.94,600.95,0.33280638]
[1743390863205,0.30501321,602.93,600.95,0.33280638]
[1743390863500,0.30501321,602.92,600.95,0.33280638]
[1743390863704,0.30501321,602.94,600.95,0.33280638]
[1743390864006,0.30501321,602.93,601.02,2.49252141]
[1743390864203,0.30501321,602.92,601.04,0.33275655]
[1743390864399,0.30501321,602.98,601.04,0.33275655]
[1743390864605,0.28899094,602.93,601.04,0.33275655]
[1743390864908,0.30501321,602.92,601.04,0.33275655]
[1743390866200,0.28899094,602.93,601.05,2.49252141]
[1743390866511,0.30501321,602.92,601.07,0.33273994]
[1743390866902,0.903,602.91,601.07,0.33273994]
[1743390867100,0.30501321,602.9,601.07,0.33273994]
[1743390867508,0.59398855,602.9,601.07,0.33273994]
[1743390867710,0.30501321,602.89,601.07,0.33273994]
[1743390868510,0.30501321,602.89,601.17,2.49252141]
[1743390868710,0.30501321,602.89,601.19,0.33267353]
[1743390870106,0.30501321,602.89,601.19,2.82519494]
[1743390870312,0.28896214,602.88,601.19,2.82519494]
[1743390870708,0.30501818,602.87,601.19,2.82519494]
[1743390872913,0.30501818,602.87,601.31,2.49252141]
[1743390873108,0.30501818,602.87,601.33,0.33259607]
[1743390873314,0.30501818,602.9,601.33,0.33259607]
[1743390873612,0.28894775,602.86,601.33,0.33259607]
[1743390873805,0.30501818,602.85,601.33,0.33259607]
[1743390874718,0.30501818,602.85,601.34,2.49252141]
[1743390874908,0.30501818,602.85,601.36,0.33257948]
[1743390876210,0.30501818,602.9,601.36,0.33257948]
[1743390876516,0.30501818,602.89,601.36,0.33257948]
[1743390876715,0.30501818,602.88,601.36,0.33257948]
[1743390876917,0.30511188,602.87,601.36,0.33257948]
[1743390877113,0.30511188,602.9,601.36,0.33257948]
[1743390877314,0.28900174,602.87,601.36,0.33257948]
[1743390877514,0.30511188,602.86,601.36,0.33257948]
[1743390878717,0.28900174,602.87,601.36,0.33257948]
[1743390878918,0.30512924,602.86,601.36,0.33257948]
[1743390879321,0.30512924,602.9,601.36,0.33257948]
[1743390879517,0.33173547,602.89,601.36,0.33257948]
[1743390879719,0.30512924,602.88,601.36,0.33257948]
[1743390879921,0.63687021,602.88,601.36,0.33257948]
[1743390880122,0.30512924,602.87,601.36,0.33257948]
[1743390880417,0.5942018,602.87,601.36,0.33257948]
[1743390880622,0.30512924,602.86,601.36,0.33257948]
[1743390880819,0.33175748,602.85,601.36,0.33257948]
[1743390881018,0.30512924,602.84,601.36,0.33257948]
[1743390881221,0.33176849,602.83,601.36,0.33257948]
[1743390881422,0.30512924,602.82,601.36,0.33257948]
[1743390881618,0.63690323,602.82,601.36,0.33257948]
[1743390881816,0.30512924,602.81,601.36,0.33257948]
[1743390882219,0.331785,602.8,601.36,0.33257948]
[1743390882724,0.28910858,602.79,601.36,0.33257948]
[1743390883517,0.30512076,602.78,601.36,0.33257948]
[1743390883925,0.28910858,602.79,601.36,0.33257948]
[1743390884225,0.30510684,602.78,601.36,0.33257948]
[1743390885220,0.331785,602.8,601.36,0.33257948]
[1743390885221,0.30510684,602.77,601.36,0.33257948]
[1743390885425,0.30510684,602.79,601.36,0.33257948]
[1743390885721,0.28906055,602.77,601.36,0.33257948]
[1743390885928,0.30510684,602.76,601.36,0.33257948]
[1743390886526,0.33181252,602.75,601.36,0.33257948]
[1743390888323,0.28902094,602.74,601.36,0.33257948]
[1743390891228,0.33181252,602.75,601.36,0.33257948]
[1743390891423,0.28904375,602.73,601.36,0.33257948]
[1743390891729,0.30517444,602.72,601.36,0.33257948]
[1743390892832,0.28904375,602.73,601.36,0.33257948]
[1743390893033,0.30516966,602.72,601.36,0.33257948]
[1743390893430,0.33183454,602.71,601.36,0.33257948]
[1743390893730,0.30516966,602.7,601.36,0.33257948]
[1743390894535,0.28904015,602.69,601.36,0.33257948]
[1743390894834,0.30516966,602.68,601.36,0.33257948]
[1743390896532,0.30519839,602.67,601.36,0.33257948]
[1743390896728,0.30519839,602.68,601.36,0.33257948]
[1743390896936,0.28904015,602.69,601.36,0.33257948]
[1743390897138,0.30519806,602.68,601.36,0.33257948]
[1743390898138,0.28904015,602.69,601.36,0.33257948]
[1743390898335,0.30519682,602.68,601.36,0.33257948]
[1743390898536,0.33185657,602.67,601.36,0.33257948]
[1743390898741,0.30519682,602.66,601.36,0.33257948]
[1743390900436,0.28906656,602.65,601.36,0.33257948]
[1743390900637,0.30519682,602.64,601.36,0.33257948]
[1743390902134,0.30519682,602.63,601.36,0.33257948]
[1743390902330,0.30519682,602.66,601.36,0.33257948]
[1743390902536,0.30519682,602.65,601.36,0.33257948]
[1743390902731,0.33187309,602.64,601.36,0.33257948]
[1743390903135,0.30522187,602.63,601.36,0.33257948]
[1743390904238,0.63710046,602.63,601.36,0.33257948]
[1743390904438,0.30522187,602.62,601.36,0.33257948]
[1743390906437,0.28907136,602.61,601.36,0.33257948]
[1743390906842,0.30520487,602.6,601.36,0.33257948]
[1743390908739,0.63709999,602.6,601.36,0.33257948]
[1743390909046,0.30520487,602.59,601.36,0.33257948]
[1743390909438,0.59429664,602.59,601.36,0.33257948]
[1743390909642,0.30520487,602.58,601.36,0.33257948]
[1743390911741,0.28909177,602.59,601.36,0.33257948]
[1743390911944,0.30521318,602.58,601.36,0.33257948]
[1743390912139,0.33191164,602.57,601.36,0.33257948]
[1743390912542,0.30521318,602.56,601.36,0.33257948]
[1743390913641,0.33191164,602.57,601.36,0.33257948]
[1743390914747,1.21191164,602.57,601.36,0.33257948]
[1743390916245,0.28916864,602.56,601.36,0.33257948]
[1743390917647,0.33192266,602.55,601.36,0.33257948]
[1743390918346,0.28911218,602.54,601.36,0.33257948]
[1743390921152,0.33192266,602.55,601.36,0.33257948]
[1743390921349,0.28911218,602.53,601.36,0.33257948]
[1743390922950,0.30528574,602.52,601.36,0.33257948]
[1743390924256,0.30528574,602.51,601.36,0.33257948]
[1743390924556,0.63723594,602.5,601.36,0.33257948]
[1743390924757,0.63724145,602.49,601.36,0.33257948]
[1743390924955,0.30528574,602.48,601.36,0.33257948]
[1743390925151,0.59453129,602.48,601.36,0.33257948]
[1743390925457,0.30528574,602.47,601.36,0.33257948]
[1743390926453,0.28924555,602.48,601.36,0.33257948]
[1743390926849,0.30529453,602.47,601.36,0.33257948]
[1743390927252,0.33195571,602.49,601.36,0.33257948]
[1743390927456,0.28923834,602.46,601.36,0.33257948]
[1743390930057,0.33195571,602.49,601.36,0.33257948]
[1743390930256,0.30529848,602.48,601.36,0.33257948]
[1743390930453,0.28914341,602.45,601.36,0.33257948]
[1743390933060,0.33196122,602.48,601.36,0.33257948]
[1743390933562,0.28909777,602.44,601.36,0.33257948]
[1743390933861,0.33196122,602.48,601.36,0.33257948]
[1743390934060,4.53866148,603.23,601.36,0.33257948]
[1743390934255,3.45274831,603.22,601.36,0.33257948]
[1743390934459,0.28905695,602.56,601.36,0.33257948]
[1743390935261,3.45340376,603.17,601.36,0.33257948]
[1743390935461,4.53931693,603.16,601.36,0.33257948]
[1743390935656,0.28902814,602.64,601.36,0.33257948]
[1743390939169,4.54144556,602.99,601.36,0.33257948]
[1743390939370,3.45553239,602.98,601.36,0.33257948]
[1743390939568,1.08591317,602.97,601.36,0.33257948]
[1743390940065,4.54144556,603.7,601.36,0.33257948]
[1743390940267,4.54144556,603.69,601.36,0.33257948]
[1743390940470,0.28910378,602.62,601.36,0.33257948]
[1743390942169,4.54144556,603.61,601.36,0.33257948]
[1743390942170,3.45553239,603.6,601.36,0.33257948]
[1743390942370,3.45553239,603.59,601.36,0.33257948]
[1743390942570,4.54144556,603.58,601.36,0.33257948]
[1743390942765,3.45553239,603.57,601.36,0.33257948]
[1743390942973,3.45553239,603.56,601.36,0.33257948]
[1743390943174,3.45553239,603.55,601.36,0.33257948]
[1743390943375,0.2891278,602.58,601.36,0.33257948]
[1743390945077,4.54144556,603.46,601.36,0.33257948]
[1743390945271,3.45553239,603.45,601.36,0.33257948]
[1743390945476,4.54144556,603.44,601.36,0.33257948]
[1743390945676,3.45553239,603.43,601.36,0.33257948]
[1743390945876,3.45553239,603.42,601.36,0.33257948]
[1743390946076,3.45553239,603.41,601.36,0.33257948]
[1743390946274,0.28915903,602.56,601.36,0.33257948]
[1743390948973,0.662,602.55,601.36,0.33257948]
[1743390985100,1.08591317,603.25,601.36,0.33257948]
[1743390985302,0.33154849,603.23,601.36,0.33257948]
[1743390985504,0.30506905,603.22,601.36,0.33257948]
[1743390985703,0.33156498,603.2,601.36,0.33257948]
[1743390985905,0.30506905,603.19,601.36,0.33257948]
[1743390986100,0.33158147,603.17,601.36,0.33257948]
[1743390986301,0.30506905,603.16,601.36,0.33257948]
[1743390986504,0.33159797,603.14,601.36,0.33257948]
[1743390986704,0.30506905,603.13,601.36,0.33257948]
[1743390986905,0.33161446,603.11,601.36,0.33257948]
[1743390987207,0.30506905,603.1,601.36,0.33257948]
[1743390987406,0.63669451,603.09,601.36,0.33257948]
[1743390987607,0.63670001,603.08,601.36,0.33257948]
[1743390987901,0.63670551,603.07,601.38,2.49252141]
[1743390988103,0.636711,603.06,601.4,0.33255736]
[1743390988306,0.6367165,603.05,601.4,0.33255736]
[1743390988504,0.30506905,603.04,601.4,0.33255736]
[1743390988713,0.33165845,603.03,601.4,0.33255736]
[1743390989203,0.30505256,603.02,601.4,0.33255736]
[1743390989509,0.33166945,603.01,601.4,0.33255736]
[1743390989707,0.30505256,603.0,601.4,0.33255736]
[1743390989901,0.33168045,602.99,601.4,0.33255736]
[1743390990101,0.30505256,602.98,601.45,2.49252141]
[1743390990306,0.33169146,602.97,601.47,0.33251866]
[1743390990503,0.30505256,602.96,601.47,0.33251866]
[1743390991009,0.63676733,602.95,601.47,0.33251866]
[1743390991208,0.63677283,602.94,601.47,0.33251866]
[1743390991408,0.63677833,602.93,601.47,0.33251866]
[1743390991609,0.63678383,602.92,601.47,0.33251866]
[1743390991803,0.63678933,602.91,601.47,0.33251866]
[1743390992009,0.63679484,602.9,601.47,0.33251866]
[1743390992205,0.63680034,602.89,601.47,0.33251866]
[1743390992409,0.63680584,602.88,601.47,0.33251866]
[1743390992709,0.63681134,602.87,601.47,0.33251866]
[1743390992911,0.63681685,602.86,601.47,0.33251866]
[1743390993110,1.67965407,602.85,601.47,0.33251866]
[1743390993309,1.67965407,602.84,601.47,0.33251866]
[1743390993512,2.01142256,602.83,601.47,0.33251866]
[1743390993705,2.01435683,602.82,601.47,0.33251866]
[1743390993910,0.63684436,602.81,601.47,0.33251866]
[1743390994107,1.41769817,602.8,601.47,0.33251866]
[1743390994306,0.3317905,602.79,601.47,0.33251866]
[1743390994709,0.30507352,602.78,601.47,0.33251866]
[1743390996609,1.41770367,602.79,601.47,0.33251866]
[1743390997110,0.3317905,602.79,601.47,0.33251866]
[1743390997307,0.28899574,602.78,601.47,0.33251866]
[1743390999114,0.3317905,602.79,601.47,0.33251866]
[1743390999913,0.28897534,602.78,601.47,0.33251866]
[1743391004819,0.934,602.77,601.47,0.33251866]
[1743391014326,0.28899814,602.76,601.47,0.33251866]
[1743391017123,0.934,602.77,601.47,0.33251866]
[1743391017525,0.28901974,602.75,601.47,0.33251866]
[1743391017927,0.63694847,602.74,601.47,0.33251866]
[1743391018126,0.30513044,602.73,601.47,0.33251866]
[1743391018724,0.33182904,602.72,601.47,0.33251866]
[1743391018932,0.30513044,602.71,601.47,0.33251866]
[1743391019134,0.33184005,602.7,601.47,0.33251866]
[1743391019334,0.30513044,602.69,601.47,0.33251866]
[1743391021432,0.62096685,602.68,601.47,0.33251866]
[1743391021638,0.30513044,602.67,601.47,0.33251866]
[1743391021932,0.33186207,602.66,601.47,0.33251866]
[1743391022138,0.30513044,602.65,601.47,0.33251866]
[1743391022835,0.33187309,602.64,601.47,0.33251866]
[1743391023139,0.30513044,602.63,601.47,0.33251866]
[1743391023640,0.59447202,602.62,601.47,0.33251866]
[1743391023935,0.30527334,602.61,601.47,0.33251866]
[1743391025132,0.33189512,602.6,601.47,0.33251866]
[1743391025333,0.30527334,602.59,601.47,0.33251866]
[1743391025539,0.33190613,602.58,601.47,0.33251866]